[Event "Germany Countries-chT Youth 2022"]
[Site "Wiesbaden"]
[Date "2022.10.01"]
[Round "1"]
[White "Besou, Hussain"]
[Black "Haubold, Christian Lucas"]
[Result "1/2-1/2"]
[ECO "E90"]
[WhiteElo "2119"]
[BlackElo "1888"]
[Annotator "TA"]
[PlyCount "134"]
[EventDate "2022.09.28"]
[EventType "team-tourn"]
[EventRounds "7"]
[EventCountry "GER"]
[SourceTitle "playchess.com"]
[Source "ChessBase"]
[SourceQuality "1"]
[TimeControl "40/5400+30:1800+30"]

{[%evp 18,134,51,42,83,73,88,97,139,112,127,94,226,226,252,238,245,245,277,263,257,204,225,206,198,236,232,185,172,157,167,158,179,141,178,188,259,206,253,152,362,327,460,347,323,312,335,298,360,347,502,483,520,517,908,649,659,689,695,683,637,608,616,608,639,638,613,558,709,689,1260,1229,1229,1217,1935,1621,1774,314,338,304,327,304,230,56,69,69,215,185,339,8,27,27,26,27,23,-19,-19,-19,-19,-19,-19,-19,-1,-3,-3,-20,-20,-26,-1,-1,-1,-1,-1,-1,-1,-1,-1,-1,-1]} 1. d4 {[%emt 0:00:02]} Nf6 {[%emt 0:00:08]} 2. c4 {[%emt 0:00:03]} g6 {[%emt 0:00:08]} 3. Nc3 {[%emt 0:00:05]} Bg7 {[%emt 0:00:09]} 4. e4 {[%emt 0:00:05]} d6 {[%emt 0:00:16]} 5. h3 {[%emt 0:00:07]} O-O {[%emt 0:00:34]} 6. Nf3 {[%emt 0:00:06]} e5 {[%emt 0:03:32]} 7. d5 {[%emt 0:00:07]} Na6 {[%emt 0:01:34]} 8. Be3 {[%emt 0:00:27]} Nc5 {[%emt 0:04:28]} 9. Nd2 {[%emt 0:04:29]} a5 {[%emt 0:01:05]} 10. g4 {[%emt 0:00:10][%cal Bg2g4,Bg4g5][%mdl 32]} Qe8 {[%emt 0:12:42] E90: King's Indian: Classical: Early deviations and 6 h3.} 11. Be2 {[%emt 0:02:49]} c6 {[%emt 0:03:53]} 12. h4 {[%emt 0:01:44][%cal Bh3h4,Bh4h5][%mdl 32] [#]} Rb8 $146 {[%emt 0:07:02] White is better.} ({Predecessor:} 12... Nfd7 13. g5 f5 14. f3 a4 15. a3 Qe7 16. Qc2 fxe4 17. fxe4 Rf4 18. O-O-O Nb6 {0-1 (48) Cardoso Cardoso,J (2414)-Maghsoodloo,P (2676) Chess.com INT 2020}) 13. h5 {[%emt 0:04:55]} cxd5 {[%emt 0:09:56]} 14. cxd5 {[%emt 0:02:12]} b5 {[%emt 0:03:16]} (14... h6 $16) 15. g5 $18 {[%emt 0:03:08]} Nxh5 {[%emt 0:14:46]} 16. Bxc5 {[%emt 0:11:19]} dxc5 {[%emt 0:00:40]} 17. Bxh5 {[%emt 0:00:07]} f5 {[%emt 0:05:57]} 18. gxf6 {[%emt 0:02:10]} Rxf6 {[%emt 0:00:59]} 19. Bf3 {[%emt 0:01:51]} c4 {[%emt 0:02:22]} 20. a4 {[%emt 0:04:17]} b4 {[%emt 0:01:58]} 21. Nb5 {[%emt 0:01:04]} (21. Nxc4 bxc3 22. bxc3 Qf8 $19) 21... Qf8 {[%emt 0:00:49]} 22. Qe2 {[%emt 0:19:28]} c3 {[%emt 0:08:28]} 23. bxc3 {[%emt 0:00:07]} bxc3 {[%emt 0:00:04]} 24. Nxc3 {[%emt 0:00:07]} Bh6 {[%emt 0:01:32] [#]} 25. Rxh6 {[%emt 0:01:53]} Qxh6 {[%emt 0:01:48]} 26. Qe3 {[%emt 0:08:17]} Qh2 {[%emt 0:04:21]} (26... Qxe3+ $142 27. fxe3 h5) 27. O-O-O {[%emt 0:03:55]} Qh3 {[%emt 0:04:51]} 28. Be2 {[%emt 0:04:20]} Qd7 $2 {[%emt 0:02:18]} (28... Rxf2 $16 29. Bf3 Rh2) 29. Bb5 {[%emt 0:00:38]} Qd6 {[%emt 0:00:14]} (29... Qc7 $142 30. Bc4 Qg7) 30. Kc2 {[%emt 0:02:01]} Qc7 {[%emt 0:01:17]} 31. f3 {[%emt 0:05:29]} Ba6 {[%emt 0:00:58]} 32. Bc6 {[%emt 0:00:36]} Rb4 {[%emt 0:01:40]} 33. Qc5 {[%emt 0:01:03]} Qb8 {[%emt 0:00:35]} (33... h5 $142 34. Rg1 Kh7) 34. Bb5 {[%emt 0:00:12]} Bxb5 {[%emt 0:01:28]} 35. axb5 {[%emt 0:00:14]} g5 {[%emt 0:00:56]} (35... Qf8 $142 36. Qc7 Qd6 37. Qxd6 Rxd6) 36. Qe7 {[%emt 0:00:52]} Qd6 {[%emt 0:00:46]} 37. Qxd6 {[%emt 0:00:19]} Rxd6 {[%emt 0:00:02]} 38. Nb3 {[%emt 0:00:22]} a4 {[%emt 0:00:43]} 39. Na5 {[%emt 0:00:10]} a3 {[%emt 0:00:37]} 40. Ra1 {[%emt 0:00:16]} Rb2+ {[%emt 0:00:19]} 41. Kd3 {[%emt 0:30:05]} Rf6 {[%emt 0:31:01]} 42. Kc4 {[%emt 0:03:15]} Rxf3 {[%emt 0:00:00]} 43. d6 {[%emt 0:00:00]} Rc2 {[%emt 0:00:00]} 44. Rxa3 {[%emt 0:00:00]} Rf6 {[%emt 0:00:00]} 45. Nb7 {[%emt 0:00:00]} Rf7 {[%emt 0:00:00]} 46. Nc5 {[%emt 0:00:00]} Rd2 {[%emt 0:00:00]} 47. Nd5 $2 {[%emt 0:00:00]} (47. d7 Rd4+ 48. Kb3 Rfxd7 49. Nxd7 Rxd7 50. b6) 47... Rd4+ {[%emt 0:00:00] [#]} 48. Kb3 $1 {[%emt 0:01:08]} Rf3+ 49. Nc3 {[%emt 0:00:00]} (49. Kb2 Rf2+ 50. Kc1 Rf1+ 51. Kc2 Rf2+ 52. Kc1 Rf1+ 53. Kc2 Rf2+ 54. Kb3 Rf3+ 55. Nc3 (55. Kb2 Rf2+ 56. Kc3 Rf3+ 57. Kc2 Rf2+ $16) 55... Rxd6 $16) 49... Rxd6 {[%emt 0:00:09]} 50. N5a4 $2 {[%emt 0:00:00]} (50. Ra6 $18 Rxa6 51. Nxa6 (51. bxa6 Rf8 $16)) 50... g4 {[%emt 0:01:55] White must now prevent ...g3.} 51. b6 {[%emt 0:00:00][%cal Bb5b6,Bb6b7][%mdl 32]} g3 {[%emt 0:01:45]} (51... h5 $14) 52. b7 {[%emt 0:00:00]} Rd8 {[%emt 0:00:55] [#]} (52... Rf8 {was worth a try.} 53. Nd5 h5) 53. Ra1 $2 {[%emt 0:00:00]} (53. Nc5 $1 $18) 53... g2 {[%emt 0:00:45]} (53... Rb8 $5 {[%cal Rb8b7]} 54. Nc5 g2 $14) 54. Rg1 {[%emt 0:00:00]} Rg3 {[%emt 0:00:06]} 55. Kc4 {[%emt 0:00:00] And now Nc5 would win.} h5 {[%emt 0:00:29][%cal Bh7h5,Bh5h4][%mdl 32] Strongly threatening ...h4.} 56. Nd5 {[%emt 0:00:00] Ne7+ is the strong threat.} Kf7 {[%emt 0:00:36][%mdl 1024] Inhibits Ne7. Black has compensation.} 57. Nab6 {[%emt 0:00:00] Pair of Knights!} Rb8 {[%emt 0:00:42]} 58. Nd7 $1 {[%emt 0:00:00][%csl LRb8,LRe5] The board is on fire.} (58. Nc8 $2 Ke6 59. Nce7 Rxb7 $19) 58... Rxb7 {[%emt 0:00:02]} 59. Nxe5+ {[%emt 0:00:00]} Ke6 {[%emt 0:00:17]} 60. Nd3 {[%emt 0:00:00]} h4 {[%emt 0:00:50] Threatens to win with ...Kf7.} 61. N5f4+ {[%emt 0:00:00]} ({Wrong is} 61. Nc5+ $2 Ke5 62. Nd3+ (62. Nxb7 $2 {too greedy.} h3 $19) 62... Kxe4 63. Re1+ (63. Nc5+ $2 Kf3 $19) 63... Kf5 64. Re5+ Kg4 65. Nf6+ Kh3 66. Nf4+ Kh2 67. Nxg2 Rxg2 $19) 61... Ke7 {[%emt 0:00:28] aiming for ...Rc7+.} 62. Nf2 {[%emt 0:00:00]} Rb2 {[%emt 0:01:09]} 63. Rxg2 {[%emt 0:00:00] The position is equal.} Rxg2 {[%emt 0:00:09]} 64. Nxg2 {[%emt 0:00:00]} Rxf2 {[%emt 0:00:07]} 65. Nxh4 {[%emt 0:00:00]} Ke6 {[%emt 0:00:28]} 66. Kd4 {[%emt 0:00:00]} Rd2+ {[%emt 0:00:23]} 67. Ke3 {[%emt 0:00:00]} Ra2 {[%emt 0:00:36] Weighted Error Value: White=0.45/Black=0.39} 1/2-1/2

[Event "Germany Countries-chT Youth 2022"]
[Site "Wiesbaden"]
[Date "2022.10.01"]
[Round "1"]
[White "Leonard, Timo"]
[Black "Pikalow, Michael"]
[Result "1/2-1/2"]
[ECO "A58"]
[WhiteElo "2067"]
[BlackElo "2037"]
[Annotator "TA"]
[PlyCount "57"]
[EventDate "2022.09.28"]
[EventType "team-tourn"]
[EventRounds "7"]
[EventCountry "GER"]
[SourceTitle "playchess.com"]
[Source "ChessBase"]
[SourceQuality "1"]
[TimeControl "40/5400+30:1800+30"]

{[%evp 9,57,14,52,62,62,60,71,35,35,2,8,0,77,29,104,115,104,111,118,126,126,129,122,90,133,133,133,137,124,124,136,132,124,131,146,146,167,83,78,59,83,83,70,0,0,0,0,0,0,0]} 1. d4 {[%emt 0:18:56]} Nf6 {[%emt 0:00:14]} 2. c4 {[%emt 0:00:03]} c5 {[%emt 0:00:03]} 3. d5 {[%emt 0:00:03]} b5 {[%emt 0:00:02]} 4. cxb5 {[%emt 0:00:30]} a6 {[%emt 0:00:04]} 5. bxa6 {[%emt 0:00:09]} g6 {[%emt 0:00:21]} 6. Nc3 {[%emt 0:00:06] A58: Benko/Volga Gambit: Lines with 5 bxa6.} Bg7 {[%emt 0:00:03]} 7. e4 {[%emt 0:02:50] Hoping for e5.} O-O {[%emt 0:00:06]} 8. Bc4 {[%emt 0:00:24][%cal Oa6a7] White is better.} e6 {[%emt 0:12:09]} 9. Nf3 {[%emt 0:19:22]} (9. a7 $5 Rxa7 10. Nge2 $11) 9... exd5 {[%emt 0:03:05] [#]} 10. Nxd5 $146 {[%emt 0:00:27]} ({Predecessor:} 10. exd5 Re8+ 11. Ne2 Bxa6 12. Qc2 Nxd5 13. Bxd5 Bxe2 14. Be3 Bb5 15. Bxa8 Qa5+ 16. Qd2 Qxa8 {0-1 (55) Romeu Viladot,E (1758)-Garcia Molina,J (1923) Salobrena 2021}) 10... Nxd5 {[%emt 0:15:07]} (10... Bxa6 $11 11. Bxa6 Rxa6) 11. Qxd5 {[%emt 0:03:25]} (11. exd5 Re8+ 12. Kf1 Bxa6 $17) ({White should try} 11. Bxd5 $16 Nc6 12. O-O) 11... Nc6 {[%emt 0:01:49]} (11... Bxa6 $11 {remains equal.} 12. O-O (12. Qxa8 Bxc4 13. Qa4 d5 $11) (12. Qxc5 Qc8 $16) 12... Bxc4 13. Qxc4 (13. Qxa8 Qc7 $14) 13... Qe7) 12. O-O {[%emt 0:02:31]} Bxa6 {[%emt 0:11:41]} 13. Qxc5 {[%emt 0:19:54] White is more active.} Qa5 {[%emt 0:08:16]} 14. Qxa5 {[%emt 0:00:59]} Nxa5 {[%emt 0:03:28]} 15. Bxa6 {[%emt 0:00:07]} Rxa6 {[%emt 0:00:02]} 16. Nd2 {[%emt 0:08:12] Against Nb3} Rb8 {[%emt 0:00:57]} 17. Rb1 $1 {[%emt 0:02:04]} Nc6 {[%emt 0:02:23] [#]} 18. a3 {[%emt 0:03:52]} Nd4 {[%emt 0:00:07]} 19. Re1 {[%emt 0:03:12] Against Ne2+} Nb3 {[%emt 0:08:01]} 20. Nxb3 {[%emt 0:17:08]} Rxb3 {[%emt 0:01:55]} 21. Ra1 {[%emt 0:01:02]} Rc6 {[%emt 0:17:13]} 22. e5 {[%emt 0:06:58]} Re6 {[%emt 0:05:32]} 23. Bf4 {[%emt 0:02:59]} (23. Re3 $18 Rxe3 24. Bxe3) 23... Rxb2 $16 {[%emt 0:01:03]} 24. a4 {[%emt 0:01:16]} Rb4 {[%emt 0:02:31] [#]} 25. g3 {[%emt 0:00:36]} Ra6 {[%emt 0:00:25]} 26. Reb1 {[%emt 0:03:38]} (26. Rac1 $14 h6 27. a5) 26... Raxa4 $11 {[%emt 0:01:12] The position is equal.} 27. Rxa4 {[%emt 0:00:17]} Rxb1+ {[%emt 0:00:02]} 28. Kg2 {[%emt 0:00:04] Ra8+ would kill now.} f6 {[%emt 0:00:42]} 29. Ra5 {[%emt 0:01:57] Weighted Error Value: White=0.16 (very precise) /Black=0.16 (very precise)} 1/2-1/2

[Event "Germany Countries-chT Youth 2022"]
[Site "Wiesbaden"]
[Date "2022.10.01"]
[Round "1"]
[White "Bosselmann, Tom Linus"]
[Black "Popist, Florian"]
[Result "1/2-1/2"]
[ECO "D27"]
[WhiteElo "2061"]
[BlackElo "2187"]
[Annotator "TA"]
[PlyCount "81"]
[EventDate "2022.09.28"]
[EventType "team-tourn"]
[EventRounds "7"]
[EventCountry "GER"]
[SourceTitle "playchess.com"]
[Source "ChessBase"]
[SourceQuality "1"]
[TimeControl "40/5400+30:1800+30"]

{[%evp 15,81,22,18,-12,-11,-10,0,-28,-2,-50,-49,-58,-43,-56,-60,-56,-50,-75,118,17,18,0,0,0,7,0,0,0,0,0,9,20,22,0,0,0,4,10,18,18,21,22,16,0,0,0,0,0,0,0,0,0,0,0,0,0,0,0,0,0,0,0,0,0,0,0,0,0]} 1. d4 {[%emt 0:00:04]} d5 {[%emt 0:00:06]} 2. c4 {[%emt 0:00:05]} dxc4 {[%emt 0:00:06]} 3. Nf3 {[%emt 0:00:24]} Nf6 {[%emt 0:00:07]} 4. e3 {[%emt 0:01:07]} e6 {[%emt 0:00:08]} 5. Bxc4 {[%emt 0:00:23]} c5 {[%emt 0:00:08]} 6. O-O {[%emt 0:02:32]} Nc6 {[%emt 0:00:05]} 7. Nc3 {[%emt 0:01:18]} a6 {[%emt 0:01:26]} 8. a4 {[%emt 0:05:22]} Qc7 {[%emt 0:02:50]} 9. Bb3 {[%emt 0:07:26] D27: Queen's Gambit Accepted: Classical main line: 7 e4!? and 7 a4.} Be7 {[%emt 0:02:45]} 10. dxc5 {[%emt 0:17:04]} Bxc5 {[%emt 0:00:11]} 11. e4 {[%emt 0:03:06] [#]} Ng4 $146 {[%emt 0:04:42] next ...Nxf2 is good for Black.} ({Predecessor:} 11... O-O 12. Qe2 Ng4 13. g3 Bd7 14. Bf4 Bd6 15. Bxd6 Qxd6 16. Rad1 Qe7 17. Kg2 Rfd8 18. Rde1 {½-½ (18) Gorbatenko,K (2086)-Gutenev,A (2348) Serpukhov 2009}) 12. h3 {[%emt 0:03:45]} (12. Bg5 $11) 12... Nxf2 $1 $15 {[%emt 0:01:32]} 13. Rxf2 {[%emt 0:00:15]} Qb6 {[%emt 0:00:07]} 14. Qc2 {[%emt 0:11:03]} Bxf2+ {[%emt 0:05:27]} 15. Qxf2 {[%emt 0:00:18]} Qxb3 {[%emt 0:00:18]} 16. Be3 {[%emt 0:01:08] Black must now prevent Bc5.} Bd7 $2 {[%emt 0:21:51] [#]} (16... O-O $17 {and life is bright.} 17. Bc5 Rd8) 17. Ra3 {[%emt 0:01:58]} (17. Bc5 $1 $16 {And now Ra3 would win.} Qc4 18. Rd1) 17... Qc4 $1 $11 {[%emt 0:04:00] The position is equal.} 18. Nd2 {[%emt 0:03:15][%mdl 1024] White has compensation.} Qb4 {[%emt 0:01:26]} 19. Rb3 {[%emt 0:01:28]} Qe7 {[%emt 0:01:50]} 20. Nc4 {[%emt 0:01:23] Prevents Na5. Strongly threatening Bc5.} O-O $1 {[%emt 0:04:22][%cal Ob7b5]} 21. Bc5 {[%emt 0:02:41]} Qg5 {[%emt 0:00:45][%cal Ob7b5]} 22. Bxf8 {[%emt 0:01:49]} Rxf8 {[%emt 0:00:43]} 23. Rxb7 {[%emt 0:01:51]} Rd8 {[%emt 0:09:15]} 24. Qe3 {[%emt 0:21:29]} (24. Rb6 {keeps more tension.} Ra8 25. Kh2 Ne5 26. Nxe5 Qxe5+ 27. Qg3) 24... Qxe3+ {[%emt 0:02:01]} 25. Nxe3 {[%emt 0:00:36]} Kf8 {[%emt 0:02:32]} 26. Nc4 {[%emt 0:00:52]} Ke7 {[%emt 0:02:40]} 27. Kf2 {[%emt 0:00:12]} Rb8 {[%emt 0:00:55]} 28. Rxb8 {[%emt 0:00:50]} Nxb8 {[%emt 0:00:02][%mdl 4096] Endgame KBN-KNN} 29. Ke3 {[%emt 0:01:58]} Nc6 {[%emt 0:03:42]} 30. b3 {[%emt 0:04:32]} f6 {[%emt 0:02:13]} 31. a5 {[%emt 0:01:43]} Be8 {[%emt 0:04:50]} 32. Na4 {[%emt 0:01:27]} e5 {[%emt 0:01:10]} 33. Nc5 {[%emt 0:01:16]} Nb4 {[%emt 0:04:08]} 34. Kd2 {[%emt 0:00:50]} Bb5 {[%emt 0:00:14]} 35. Kc3 {[%emt 0:00:33]} Nc6 {[%emt 0:01:04]} 36. b4 {[%emt 0:00:26]} Nd4 {[%emt 0:01:07]} 37. Ne3 {[%emt 0:00:37]} Kd6 {[%emt 0:03:25]} 38. h4 {[%emt 0:00:33]} g6 {[%emt 0:05:06]} 39. g4 {[%emt 0:01:42]} Ne2+ {[%emt 0:02:45]} 40. Kd2 {[%emt 0:00:34]} Nf4 {[%emt 0:01:44] Inhibits Nd5.} 41. Kc3 {[%emt 0:02:25] Weighted Error Value: White=0.14 (very precise) /Black=0.11 (very precise)} 1/2-1/2

[Event "Germany Countries-chT Youth 2022"]
[Site "Wiesbaden"]
[Date "2022.10.01"]
[Round "1"]
[White "Koll, Linus"]
[Black "Nied, Pascal"]
[Result "1/2-1/2"]
[ECO "C50"]
[WhiteElo "2060"]
[BlackElo "2131"]
[Annotator "TA"]
[PlyCount "105"]
[EventDate "2022.09.28"]
[EventType "team-tourn"]
[EventRounds "7"]
[EventCountry "GER"]
[SourceTitle "playchess.com"]
[Source "ChessBase"]
[SourceQuality "1"]
[TimeControl "40/5400+30:1800+30"]

{[%evp 14,105,14,-8,2,-17,-6,-48,-40,-57,-60,-58,-39,-46,-48,-42,-45,-38,-41,-50,-33,-51,-51,-41,-16,-47,-38,-46,-38,-57,-45,-91,-83,-89,-95,-86,-90,-82,-82,-83,-85,-82,-85,-94,-37,-42,-53,-60,-60,-53,-54,-69,-64,-157,-155,-127,-54,-257,-55,-131,-114,-207,-66,-169,-157,-160,-16,-16,-16,-16,-9,-9,-9,-9,0,0,0,0,0,0,0,0,0,0,0,0,0,0,0,0,0,0,0,-9]} 1. e4 {[%emt 0:00:01]} e5 {[%emt 0:00:27]} 2. Nf3 {[%emt 0:00:06]} Nc6 {[%emt 0:00:04]} 3. Bc4 {[%emt 0:00:13]} Nf6 {[%emt 0:00:14]} 4. d3 {[%emt 0:00:14]} Bc5 {[%emt 0:00:08]} 5. O-O {[%emt 0:00:09]} h6 {[%emt 0:00:11]} 6. Be3 {[%emt 0:02:33]} Bb6 {[%emt 0:02:00]} 7. Nc3 {[%emt 0:00:37]} d6 {[%emt 0:05:07]} 8. Qd2 {[%emt 0:06:21] [#]} Na5 $146 {[%emt 0:17:09] C50: Hungarian Defence and Giuoco Pianissimo.} ({Predecessor:} 8... Bg4 9. Bxb6 axb6 10. Qe3 O-O 11. Nh4 Na5 12. Bb3 Nxb3 13. axb3 Rxa1 14. Re1 Rc1 15. Rxc1 Kh8 16. Ra1 {½-½ (16) Reguigui,M-Saidi,M (1215) Sousse 2021}) 9. Bb5+ {[%emt 0:04:32]} c6 {[%emt 0:01:21][%cal Bc7c6,Bc6b5,Bb5b4,Bb4a3][%mdl 32]} 10. Bxb6 {[%emt 0:15:18]} (10. Ba4 $5 {[%cal Rb2b4]}) 10... axb6 {[%emt 0:09:42] Black is slightly better.} 11. b4 {[%emt 0:02:03]} cxb5 {[%emt 0:01:37]} 12. bxa5 {[%emt 0:00:07]} b4 {[%emt 0:01:15]} 13. Ne2 {[%emt 0:21:41]} bxa5 {[%emt 0:00:44]} 14. a3 {[%emt 0:01:39]} bxa3 {[%emt 0:01:46]} 15. c4 {[%emt 0:00:25]} O-O {[%emt 0:22:56]} 16. Rfb1 {[%emt 0:01:46]} Qc7 {[%emt 0:01:31]} 17. Qe3 {[%emt 0:07:01]} Bd7 {[%emt 0:13:09][%cal Ob7b5]} 18. Nc3 {[%emt 0:05:57] Against b5} Bc6 {[%emt 0:04:08]} 19. Rxa3 {[%emt 0:04:37]} (19. Nh4 {seems wilder.} Ra6 20. Nf5 Bd7 21. Nb5) 19... Ra6 {[%emt 0:02:46]} (19... Qe7 $5 {[%cal Rd6d5]} 20. Ra2 Rfe8 $15) 20. Nb5 {[%emt 0:06:46]} Qd7 {[%emt 0:01:04]} 21. Nd2 {[%emt 0:03:37]} a4 {[%emt 0:02:40]} 22. Rb4 {[%emt 0:01:19]} (22. Nf1 $15) 22... d5 {[%emt 0:01:26]} 23. exd5 {[%emt 0:01:30] [#]} Nxd5 {[%emt 0:00:25]} 24. cxd5 {[%emt 0:01:13]} Bxb5 {[%emt 0:00:08]} 25. Qc5 {[%emt 0:05:08]} Ra5 {[%emt 0:02:32]} 26. Nc4 {[%emt 0:01:20]} Rc8 {[%emt 0:00:39]} 27. Qb6 {[%emt 0:00:40]} Bxc4 $40 {[%emt 0:01:50][%mdl 128] Black wants a kill.} 28. Qxa5 {[%emt 0:00:44]} Qxd5 {[%emt 0:02:15]} (28... Bxd5 $17 {[%cal Rc8c1]} 29. Ra1 Qe7) 29. Qxd5 {[%emt 0:02:43]} Bxd5 $17 {[%emt 0:00:05][%cal Rc8c1][%mdl 4096] [#] Endgame KRR-KRB} 30. f3 {[%emt 0:00:30]} Rc1+ {[%emt 0:01:10]} 31. Kf2 {[%emt 0:00:06]} Rc2+ {[%emt 0:00:32]} 32. Kg3 {[%emt 0:00:39]} Bc6 {[%emt 0:00:44]} 33. Rc4 {[%emt 0:02:25]} (33. d4 $15) 33... Rd2 {[%emt 0:01:51]} 34. h4 {[%emt 0:01:07]} f5 {[%emt 0:01:44]} (34... h5 $17 35. Rc5 f6) 35. Rc5 $2 {[%emt 0:00:58]} ({Better is} 35. Raxa4 $15 Bxa4 36. Rxa4) 35... Re2 $2 {[%emt 0:01:02]} ({Black should try} 35... f4+ $19 36. Kh2 Bxf3) 36. Rac3 {[%emt 0:01:06]} (36. Rxc6 $15 bxc6 37. Rxa4) 36... Kf7 {[%emt 0:01:10]} 37. R5c4 {[%emt 0:01:13]} (37. h5 $17) 37... Kf6 {[%emt 0:00:49]} (37... f4+ $19 38. Kh3 Ke7) 38. d4 {[%emt 0:00:28]} (38. Rxc6+ $15 bxc6 39. Rxc6+ Kf7 40. Ra6) 38... f4+ $19 {[%emt 0:00:22]} 39. Kh3 {[%emt 0:00:21]} e4 {[%emt 0:00:43]} ({Black should play} 39... Bd7+ $17 40. Kh2 e4) 40. Rxc6+ $11 {[%emt 0:00:39] The position is equal.} bxc6 {[%emt 0:00:07]} 41. Rxc6+ {[%emt 0:30:10] KR-KR} Kf5 {[%emt 0:18:05] Hoping for ...e3.} 42. Rc5+ {[%emt 0:00:00]} Ke6 {[%emt 0:00:20] Threatens to win with ...e3.} 43. Re5+ {[%emt 0:00:00]} Kd6 {[%emt 0:00:29] And now ...exf3 would win.} 44. fxe4 {[%emt 0:00:00]} a3 {[%emt 0:00:34]} 45. Ra5 {[%emt 0:00:00]} Rxe4 {[%emt 0:00:18] Strongly threatening ...Re2.} 46. Kg4 {[%emt 0:00:00]} Rxd4 {[%emt 0:02:25] ...Rd3 is the strong threat.} 47. Rxa3 {[%emt 0:00:00]} Rd2 {[%emt 0:02:34]} 48. Kf3 {[%emt 0:00:00]} Ke5 {[%emt 0:00:33]} 49. Ra5+ {[%emt 0:00:00]} Kf6 {[%emt 0:00:20]} 50. Ra6+ {[%emt 0:00:00]} Kf5 {[%emt 0:00:36]} 51. Ra5+ {[%emt 0:00:00]} Kg6 {[%emt 0:00:43]} 52. h5+ {[%emt 0:00:00]} Kf6 {[%emt 0:01:31]} 53. Ke4 {[%emt 0:00:14] White happily takes the draw.  Weighted Error Value: White=0.23 (precise) /Black=0.26 (precise)} 1/2-1/2

[Event "Germany Countries-chT Youth 2022"]
[Site "Wiesbaden"]
[Date "2022.10.01"]
[Round "1"]
[White "Chassard, Cedric"]
[Black "Musiolik, David"]
[Result "0-1"]
[ECO "B12"]
[WhiteElo "2042"]
[BlackElo "2252"]
[Annotator "TA"]
[PlyCount "84"]
[EventDate "2022.09.28"]
[EventType "team-tourn"]
[EventRounds "7"]
[EventCountry "GER"]
[SourceTitle "playchess.com"]
[Source "ChessBase"]
[SourceQuality "1"]
[TimeControl "40/5400+30:1800+30"]

{[%evp 12,84,37,24,31,25,22,12,45,43,37,43,34,34,51,0,-4,-33,-10,-12,-33,-52,-41,-37,-47,-45,-47,-52,-47,-83,-74,-70,-69,-151,-127,-150,-152,-193,-202,-205,-197,-308,-293,-303,-247,-329,-309,-315,-325,-333,-345,-388,-335,-332,-325,-397,-378,-529,-488,-675,-568,-6195,-5991,-5305,-5290,-2079,-29975,-29975,-29976,-29976,-29977,-29960,-29954,-29989,-29990]} 1. e4 {[%emt 0:00:03]} c6 {[%emt 0:00:14]} 2. d4 {[%emt 0:00:06]} d5 {[%emt 0:00:10]} 3. e5 {[%emt 0:00:03]} Bf5 {[%emt 0:00:19]} 4. Nf3 {[%emt 0:00:06]} e6 {[%emt 0:00:26]} 5. Be2 {[%emt 0:00:02]} Ne7 {[%emt 0:00:15]} 6. O-O {[%emt 0:00:32]} Bg6 {[%emt 0:00:16] 6...h6 is a critical line.} 7. Nbd2 {[%emt 0:09:26]} Nf5 {[%emt 0:00:16] B12: Caro-Kann: Advance Variation.} 8. Nb3 {[%emt 0:00:23]} Nd7 {[%emt 0:00:56]} 9. a4 {[%emt 0:03:34]} Be7 {[%emt 0:08:02] The position is equal.} 10. g4 {[%emt 0:11:11]} Nh4 {[%emt 0:09:25]} 11. Nxh4 {[%emt 0:00:54]} Bxh4 {[%emt 0:00:06]} 12. f4 {[%emt 0:01:21]} f5 {[%emt 0:03:00] [#]} ({Don't take} 12... Be4 13. Nd2 $16) 13. g5 $146 {[%emt 0:18:11]} (13. Bd3 $14) ({Predecessor:} 13. Bd3 Qe7 14. gxf5 exf5 15. Qf3 Qe6 16. a5 O-O 17. Be3 b5 18. Kh1 Kh8 19. Rg1 {1-0 (34) Grischuk,A (2759)-Bareev,E (2643) Amsterdam 2019}) 13... h6 $11 {[%emt 0:01:19]} 14. Bh5 {[%emt 0:01:46]} Nf8 {[%emt 0:02:04][%cal Rh6g5]} 15. Nc5 {[%emt 0:01:25] Black must now prevent Bxg6+.} Qe7 {[%emt 0:02:23][%cal Rh6g5]} 16. Bxg6+ {[%emt 0:07:58]} Nxg6 {[%emt 0:00:03]} 17. gxh6 $1 {[%emt 0:00:56]} Rxh6 {[%emt 0:01:06]} 18. a5 {[%emt 0:00:43]} Kf7 {[%emt 0:03:24]} 19. Ra3 {[%emt 0:02:02]} Qc7 {[%emt 0:04:22]} 20. a6 {[%emt 0:11:35]} b6 {[%emt 0:02:21][%cal Bb7b6,Bb6b5,Bb5c4][%mdl 32]} 21. Nb7 {[%emt 0:01:34]} Rah8 {[%emt 0:07:51]} 22. Qe2 {[%emt 0:04:23] White is now going downhill.} (22. Raf3 $15) 22... Be7 $17 {[%emt 0:01:50]} 23. Rg3 {[%emt 0:01:03] [#]} c5 $1 {[%emt 0:06:22]} (23... Rxh2 24. Qxh2 Rxh2 25. Kxh2 $15) 24. Rc3 {[%emt 0:05:59]} c4 {[%emt 0:05:36]} ({Worse is} 24... Rxh2 25. Qxh2 Rxh2 26. Kxh2 $17) 25. Rf2 {[%emt 0:01:52]} b5 {[%emt 0:02:12]} 26. b3 {[%emt 0:03:54]} (26. Rg2 $142) 26... Qb6 $19 {[%emt 0:03:35][%csl LRa6,LRd4]} 27. bxc4 {[%emt 0:01:33]} bxc4 {[%emt 0:05:50]} ({Stronger than} 27... Qxd4 28. Qd2 Qxd2 29. Bxd2 bxc4 30. Rcf3 $17) 28. Nc5 {[%emt 0:03:02]} Bxc5 {[%emt 0:03:55]} 29. dxc5 {[%emt 0:00:01]} Qxc5 {[%emt 0:00:55]} 30. Be3 {[%emt 0:00:40]} Qa5 {[%emt 0:00:59][%csl LRa6,LRc3]} 31. Qd2 {[%emt 0:04:08]} Qxa6 {[%emt 0:05:36]} 32. Qc1 {[%emt 0:00:21]} Qb5 {[%emt 0:04:43]} 33. Ra3 {[%emt 0:01:40]} a6 {[%emt 0:00:41] Hoping for ...Rh4.} 34. c3 {[%emt 0:00:06]} Rb8 {[%emt 0:00:45] Strongly threatening ...Nh4.} 35. Rfa2 {[%emt 0:02:06]} Qb1 {[%emt 0:01:50]} 36. Rxa6 {[%emt 0:00:45]} Qe4 {[%emt 0:00:56]} 37. Ra7+ {[%emt 0:00:42]} Kg8 {[%emt 0:04:21] ( -> ...Rb1)} 38. Ra8 {[%emt 0:00:18]} Rxa8 {[%emt 0:00:06]} 39. Rxa8+ {[%emt 0:00:02] [#] Black mates.} Kh7 $1 {[%emt 0:00:14]} 40. Ra2 {[%emt 0:03:33]} Nh4 {[%emt 0:00:18]} 41. Rf2 {[%emt 0:04:16]} Nf3+ {[%emt 0:01:03]} 42. Kf1 {[%emt 0:00:45]} Nxh2+ {[%emt 0:00:04] Weighted Error Value: White=0.46/Black=0.09 (flawless)} 0-1